fUST/lending_fUST_20250809
["ID","MTS","AMOUNT","RATE_DAILY","PERIOD"]
[378089324,1754721049699,-460.0,0.00022739,2]
[378089325,1754721049709,-750.91,0.00022739,2]
[378089326,1754721049719,-460.0,0.00022739,2]
[378089327,1754721049728,-460.0,0.00022739,2]
[378089328,1754721049738,-531.05,0.00022739,2]
[378089329,1754721049747,-460.0,0.00022739,2]
[378089330,1754721049756,-460.0,0.00022739,2]
[378089331,1754721049765,-460.0,0.00022739,2]
[378089332,1754721049775,-460.0,0.00022739,2]
[378089333,1754721049784,-460.0,0.00022739,2]
[378089334,1754721049794,-460.0,0.00022739,2]
[378089335,1754721049803,-460.0,0.00022739,2]
[378089336,1754721049814,-662.38,0.00022739,2]
[378089337,1754721049823,-460.0,0.00022739,2]
[378089338,1754721049833,-460.0,0.00022739,2]
[378089339,1754721049843,-460.0,0.00022739,2]
[378089340,1754721049853,-460.0,0.00022739,2]
[378089341,1754721049862,-460.0,0.00022739,2]
[378089342,1754721049871,-846.83,0.00022739,2]
[378089343,1754721049881,-460.0,0.00022739,2]
[378089344,1754721049891,-460.0,0.00022739,2]
[378089345,1754721049901,-460.0,0.00022739,2]
[378089346,1754721049911,-460.0,0.00022739,2]
[378089347,1754721049921,-460.0,0.00022739,2]
[378089348,1754721049931,-460.0,0.00022739,2]
[378089349,1754721049942,-460.0,0.00022739,2]
[378089350,1754721049953,-460.0,0.00022739,2]
[378089351,1754721049968,-468.38819091,0.00022739,2]
[378089352,1754721049978,-460.0,0.00022739,2]
[378089353,1754721049989,-460.0,0.00022739,2]
[378089354,1754721049999,-460.0,0.00022739,2]
[378089355,1754721050008,-486.22492855,0.00022739,2]
[378089356,1754721050018,-466.24746268,0.00022739,2]
[378089357,1754721050030,-460.0,0.00022739,2]
[378089358,1754721050171,-460.0,0.00022739,2]
[378089359,1754721050180,-482.96751032,0.00022739,2]
[378089360,1754721050190,-460.0,0.00022739,2]
[378089361,1754721050199,-460.0,0.00022739,2]
[378089362,1754721050210,-460.0,0.00022739,2]
[378089363,1754721050219,-460.0,0.00022739,2]
[378089364,1754721050229,-460.0,0.00022739,2]
[378089365,1754721050238,-460.0,0.00022739,2]
[378089366,1754721050248,-460.0,0.00022739,2]
[378089367,1754721050258,-460.0,0.00022739,2]
[378089368,1754721050268,-460.0,0.00022739,2]
[378089369,1754721050278,-460.0,0.00022739,2]
[378089370,1754721050289,-487.37,0.00022739,2]
[378089371,1754721050298,-460.0,0.00022739,2]
[378089372,1754721050307,-460.0,0.00022739,2]
[378089373,1754721050317,-460.0,0.00022739,2]
[378089374,1754721050328,-440.07417627,0.00022739,2]
[378089375,1754721050338,-460.0,0.00022739,2]
[378089376,1754721050347,-460.0,0.00022739,2]
[378089377,1754721050357,-460.0,0.00022739,2]
[378089378,1754721050367,-460.0,0.00022739,2]
[378089379,1754721050378,-460.0,0.00022739,2]
[378089380,1754721050388,-460.0,0.00022739,2]
[378089381,1754721050399,-460.0,0.00022739,2]
[378089382,1754721050409,-1296.46,0.00022739,2]
[378089383,1754721050419,-1211.37,0.00022739,2]
[378089384,1754721050428,-460.0,0.00022739,2]
[378089385,1754721050437,-1408.08,0.00022739,2]
[378089386,1754721050448,-689.75,0.00022739,2]
[378089387,1754721050462,-460.0,0.00022739,2]
[378089388,1754721050471,-460.0,0.00022739,2]
[378089389,1754721050481,-460.0,0.00022739,2]
[378089390,1754721050490,-1084.78,0.00022739,2]
[378089391,1754721050500,-2640.67,0.00022739,2]
[378089392,1754721050509,-1238.18,0.00022739,2]
[378089393,1754721050519,-568.38,0.00022739,2]
[378089394,1754721050528,-460.0,0.00022739,2]
[378089395,1754721050536,-460.0,0.00022739,2]
[378089396,1754721050546,-460.0,0.00022739,2]
[378089397,1754721050555,-774.83,0.00022739,2]
[378089398,1754721050564,-460.0,0.00022739,2]
[378089399,1754721050574,-705.68,0.00022739,2]
[378089400,1754721050583,-1168.01,0.00022739,2]
[378089401,1754721050593,-593.19,0.00022739,2]
[378089402,1754721050603,-460.0,0.00022739,2]
[378089403,1754721050612,-460.0,0.00022739,2]
[378089404,1754721050622,-554.86,0.00022739,2]
[378089405,1754721050631,-581.94115662,0.00022739,2]
[378089406,1754721050640,-460.0,0.00022739,2]
[378089407,1754721050650,-460.0,0.00022739,2]
[378089408,1754721050659,-460.0,0.00022739,2]
[378089409,1754721050668,-460.0,0.00022739,2]
[378089410,1754721050678,-460.0,0.00022739,2]
[378089411,1754721050688,-2187.57,0.00022739,2]
[378089412,1754721050697,-891.51,0.00022739,2]
[378089413,1754721050709,-460.0,0.00022739,2]
[378089414,1754721050718,-460.0,0.00022739,2]
[378089415,1754721050728,-460.0,0.00022739,2]
[378089416,1754721050738,-1468.96,0.00022739,2]
[378089417,1754721050748,-5203.2,0.00022739,2]
[378089418,1754721050758,-871.09,0.00022739,2]
[378089419,1754721050768,-673.08,0.00022739,2]
[378089420,1754721050777,-516.08,0.00022739,2]
[378089421,1754721050786,-460.0,0.00022739,2]
[378089422,1754721050795,-460.0,0.00022739,2]
[378089423,1754721050805,-460.0,0.00022739,2]
[378089424,1754721050814,-460.0,0.00022739,2]
[378089425,1754721050823,-2063.88,0.00022739,2]
[378089426,1754721050832,-460.0,0.00022739,2]
[378089427,1754721050842,-460.0,0.00022739,2]
[378089428,1754721050852,-460.0,0.00022739,2]
[378089429,1754721050861,-460.0,0.00022739,2]
[378089430,1754721050871,-763.98,0.00022739,2]
[378089431,1754721050880,-460.0,0.00022739,2]
[378089432,1754721050890,-1179.78,0.00022739,2]
[378089433,1754721050899,-2244.2,0.00022739,2]
[378089434,1754721050908,-460.0,0.00022739,2]
[378089435,1754721050918,-460.0,0.00022739,2]
[378089436,1754721050927,-460.0,0.00022739,2]
[378089437,1754721050937,-486.04,0.00022739,2]
[378089438,1754721050946,-460.0,0.00022739,2]
[378089439,1754721050957,-460.0,0.00022739,2]
[378089440,1754721050969,-545.0,0.00022739,2]
[378089441,1754721050978,-460.0,0.00022739,2]
[378089442,1754721050987,-469.67775498,0.00022739,2]
[378089443,1754721050997,-1262.23,0.00022739,2]
[378089444,1754721051007,-460.0,0.00022739,2]
[378089445,1754721051016,-596.41,0.00022739,2]
[378089446,1754721051026,-460.0,0.00022739,2]
[378089447,1754721051036,-460.0,0.00022739,2]
[378089448,1754721051045,-460.0,0.00022739,2]
[378089449,1754721051055,-460.0,0.00022739,2]
[378089450,1754721051064,-690.35,0.00022739,2]
[378089451,1754721051084,-1239.79,0.00022739,2]
[378089452,1754721051101,-868.95,0.00022739,2]
[378089453,1754721051111,-460.0,0.00022739,2]
[378089454,1754721051121,-1091.38,0.00022739,2]
[378089455,1754721051132,-487.73,0.00022739,2]
[378089456,1754721051142,-460.0,0.00022739,2]
[378089457,1754721051152,-460.0,0.00022739,2]
[378089458,1754721051161,-460.0,0.00022739,2]
[378089459,1754721051172,-1730.53,0.00022739,2]
[378089460,1754721051182,-460.0,0.00022739,2]
[378089461,1754721051191,-460.0,0.00022739,2]
[378089462,1754721051200,-460.0,0.00022739,2]
[378089463,1754721051213,-570.5,0.00022739,2]
[378089464,1754721051222,-460.0,0.00022739,2]
[378089465,1754721051232,-479.44665692,0.00022739,2]
[378089466,1754721051242,-1042.72,0.00022739,2]
[378089467,1754721051252,-460.0,0.00022739,2]
[378089468,1754721051262,-460.0,0.00022739,2]
[378089469,1754721051271,-3431.05,0.00022739,2]
[378089470,1754721051280,-460.0,0.00022739,2]
[378089471,1754721051289,-460.0,0.00022739,2]
[378089472,1754721051298,-833.86,0.00022739,2]
[378089473,1754721051307,-460.0,0.00022739,2]
[378089474,1754721051316,-609.59809324,0.00022739,2]
[378089475,1754721051325,-460.0,0.00022739,2]
[378089476,1754721051334,-622.29,0.00022739,2]
[378089477,1754721051343,-460.0,0.00022739,2]
[378089478,1754721051352,-460.0,0.00022739,2]
[378089479,1754721051361,-480.94,0.00022739,2]
[378089480,1754721051370,-460.0,0.00022739,2]
[378089481,1754721051380,-186.21622893,0.00022773,2]
[378089482,1754721051389,-500.0,0.00022773,2]
[378089483,1754721051397,-500.0,0.00022773,2]
[378089484,1754721051406,-500.0,0.00022773,2]
[378089485,1754721051415,-500.0,0.00022773,2]
[378089486,1754721051425,-250.46006549,0.00022773,2]
[378089487,1754721051434,-300.0,0.00022773,2]
[378089488,1754721051443,-500.0,0.00022773,2]
[378089489,1754721051452,-500.0,0.00022773,2]
[378089490,1754721051463,-500.0,0.00022773,2]
[378089491,1754721051472,-500.0,0.00022773,2]
[378089492,1754721051482,-500.0,0.00022773,2]
[378089493,1754721051497,-596.48551058,0.00022773,2]
[378089494,1754721051517,-500.0,0.00022773,2]
[378089495,1754721051535,-500.0,0.00022773,2]
[378089496,1754721051545,-500.0,0.00022773,2]
[378089497,1754721051555,-500.0,0.00022773,2]
[378089498,1754721051564,-500.0,0.00022773,2]
[378089499,1754721051574,-500.0,0.00022773,2]
[378089500,1754721051583,-446.95290269,0.00022773,2]
[378089501,1754721051593,-500.0,0.00022773,2]
[378089502,1754721051602,-500.0,0.00022773,2]
[378089503,1754721051612,-500.0,0.00022773,2]
[378089504,1754721051621,-205.90481094,0.00022773,2]
[378089505,1754721051631,-392.07726344,0.00022773,2]
[378089506,1754721051641,-500.0,0.00022773,2]
[378089507,1754721051663,-500.0,0.00022773,2]
[378089508,1754721051679,-503.13372029,0.00022773,2]
[378089509,1754721051689,-500.0,0.00022773,2]
[378089510,1754721051698,-500.0,0.00022773,2]
[378089511,1754721051709,-500.0,0.00022773,2]
[378089512,1754721051718,-500.0,0.00022773,2]
[378089513,1754721051728,-500.0,0.00022773,2]
[378089514,1754721051737,-500.0,0.00022773,2]
[378089515,1754721051747,-500.0,0.00022773,2]
[378089516,1754721051757,-500.0,0.00022773,2]
[378089517,1754721051766,-150.0,0.00022773,2]
[378089518,1754721051776,-500.0,0.00022773,2]
[378089519,1754721051785,-500.0,0.00022773,2]
[378089520,1754721051794,-500.0,0.00022773,2]
[378089521,1754721051803,-505.80135323,0.00022773,2]
[378089522,1754721051813,-649.78876618,0.00022773,2]
[378089523,1754721051822,-500.0,0.00022773,2]
[378089524,1754721051831,-500.0,0.00022773,2]
[378089525,1754721051840,-500.0,0.00022773,2]
[378089526,1754721051850,-500.0,0.00022773,2]
[378089527,1754721051859,-500.0,0.00022773,2]
[378089528,1754721051871,-553.67518927,0.00022773,2]
[378089529,1754721051880,-500.0,0.00022773,2]
[378089530,1754721051890,-500.0,0.00022773,2]
[378089531,1754721051899,-500.0,0.00022773,2]
[378089532,1754721051909,-500.0,0.00022773,2]
[378089533,1754721051918,-500.0,0.00022773,2]
[378089534,1754721051927,-312.07373758,0.00022804,2]
[378089535,1754721051937,-442.65056221,0.00022875,2]
[378089536,1754721051947,-151.0,0.000229,10]
[378089537,1754721051957,-151.0,0.00022976,2]
[378089538,1754721051970,-264.9374915,0.00022976,2]
[378089539,1754721051979,-252.53139995,0.00022976,2]
[378089540,1754721051988,-151.0,0.00022976,2]
[378089541,1754721051998,-200.82943486,0.00022976,2]
[378089542,1754721052008,-151.0,0.00022976,2]
[378089543,1754721052018,-151.0,0.00023,10]
[378089544,1754721052027,-160.0,0.00023,2]
[378089545,1754721052036,-460.0,0.00023013,2]
[378089546,1754721052046,-460.0,0.00023013,2]
[378089547,1754721052056,-186.84160051,0.00023013,2]
[378089548,1754721052065,-460.0,0.00023013,2]
[378089549,1754721052075,-460.0,0.00023013,2]
[378089550,1754721052084,-460.0,0.00023013,2]
[378089551,1754721052093,-501.47,0.00023013,2]
[378089552,1754721052102,-460.0,0.00023013,2]
[378089553,1754721052111,-460.0,0.00023013,2]
[378089554,1754721052121,-460.0,0.00023013,2]
[378089555,1754721052131,-460.0,0.00023013,2]
[378089556,1754721052141,-460.0,0.00023013,2]
[378089557,1754721052149,-460.0,0.00023013,2]
[378089558,1754721052159,-460.0,0.00023013,2]
[378089559,1754721052169,-750.91,0.00023013,2]
[378089560,1754721052178,-460.0,0.00023013,2]
[378089561,1754721052187,-562.54058068,0.00023013,2]
[378089562,1754721052197,-531.05,0.00023013,2]
[378089563,1754721052207,-460.0,0.00023013,2]
[378089564,1754721052216,-460.0,0.00023013,2]
[378089565,1754721052225,-460.0,0.00023013,2]
[378089566,1754721052234,-460.0,0.00023013,2]
[378089567,1754721052243,-460.0,0.00023013,2]
[378089568,1754721052253,-596.47513349,0.00023013,2]
[378089569,1754721052262,-662.38,0.00023013,2]
[378089570,1754721052272,-460.0,0.00023013,2]
[378089571,1754721052281,-460.0,0.00023013,2]
[378089572,1754721052290,-460.0,0.00023013,2]
[378089573,1754721052299,-460.0,0.00023013,2]
[378089574,1754721052308,-846.83,0.00023013,2]
[378089575,1754721052317,-460.0,0.00023013,2]
[378089576,1754721052326,-460.0,0.00023013,2]
[378089577,1754721052335,-460.0,0.00023013,2]
[378089578,1754721052345,-474.49104705,0.00023013,2]
[378089579,1754721052355,-460.0,0.00023013,2]
[378089580,1754721052364,-460.0,0.00023013,2]
[378089581,1754721052373,-460.0,0.00023013,2]
[378089582,1754721052383,-460.0,0.00023013,2]
[378089583,1754721052392,-460.0,0.00023013,2]
[378089584,1754721052401,-460.0,0.00023013,2]
[378089585,1754721052410,-460.0,0.00023013,2]
[378089586,1754721052419,-460.0,0.00023013,2]
[378089587,1754721052429,-460.0,0.00023013,2]
[378089588,1754721052438,-460.0,0.00023013,2]
[378089589,1754721052448,-460.0,0.00023013,2]
[378089590,1754721052458,-460.0,0.00023013,2]
[378089591,1754721052468,-460.0,0.00023013,2]
[378089592,1754721052477,-460.0,0.00023013,2]
[378089593,1754721052487,-460.0,0.00023013,2]
[378089594,1754721052496,-460.0,0.00023013,2]
[378089595,1754721052505,-487.37,0.00023013,2]
[378089596,1754721052514,-460.0,0.00023013,2]
[378089597,1754721052523,-460.0,0.00023013,2]
[378089598,1754721052532,-460.0,0.00023013,2]
[378089599,1754721052541,-460.0,0.00023013,2]
[378089600,1754721052551,-460.0,0.00023013,2]
[378089601,1754721052560,-460.0,0.00023013,2]
[378089602,1754721052569,-460.0,0.00023013,2]
[378089603,1754721052579,-460.0,0.00023013,2]
[378089604,1754721052589,-460.0,0.00023013,2]
[378089605,1754721052599,-460.0,0.00023013,2]
[378089606,1754721052608,-1296.46,0.00023013,2]
[378089607,1754721052617,-1211.37,0.00023013,2]
[378089608,1754721052627,-460.0,0.00023013,2]
[378089609,1754721052636,-1408.08,0.00023013,2]
[378089610,1754721052645,-689.75,0.00023013,2]
[378089611,1754721052654,-460.0,0.00023013,2]
[378089612,1754721052664,-460.0,0.00023013,2]
[378089613,1754721052674,-460.0,0.00023013,2]
[378089614,1754721052683,-1084.78,0.00023013,2]
[378089615,1754721052692,-2640.67,0.00023013,2]
[378089616,1754721052702,-1238.18,0.00023013,2]
[378089617,1754721052824,-568.38,0.00023013,2]
[378089618,1754721052834,-460.0,0.00023013,2]
[378089619,1754721052844,-460.0,0.00023013,2]
[378089620,1754721052853,-336.4183092,0.00023013,2]
[378089621,1754721052862,-774.83,0.00023013,2]
[378089622,1754721052872,-460.0,0.00023013,2]
[378089623,1754721052881,-705.68,0.00023013,2]
[378089624,1754721052890,-593.19,0.00023013,2]
[378089625,1754721052900,-1168.01,0.00023013,2]
[378089626,1754721052909,-460.0,0.00023013,2]
[378089627,1754721052919,-460.0,0.00023013,2]
[378089628,1754721052928,-554.86,0.00023013,2]
[378089629,1754721052937,-460.0,0.00023013,2]
[378089630,1754721052946,-460.0,0.00023013,2]
[378089631,1754721052956,-460.0,0.00023013,2]
[378089632,1754721052970,-460.0,0.00023013,2]
[378089633,1754721052979,-2187.57,0.00023013,2]
[378089634,1754721052988,-891.51,0.00023013,2]
[378089635,1754721052999,-490.17582449,0.00023013,2]
[378089636,1754721053010,-460.0,0.00023013,2]
[378089637,1754721053020,-460.0,0.00023013,2]
[378089638,1754721053029,-1468.96,0.00023013,2]
[378089639,1754721053039,-5203.2,0.00023013,2]
[378089640,1754721053048,-871.09,0.00023013,2]
[378089641,1754721053058,-673.08,0.00023013,2]
[378089642,1754721053067,-516.08,0.00023013,2]
[378089643,1754721053077,-460.0,0.00023013,2]
[378089644,1754721053086,-460.0,0.00023013,2]
[378089645,1754721053095,-2063.88,0.00023013,2]
[378089646,1754721053105,-460.0,0.00023013,2]
[378089647,1754721053118,-460.0,0.00023013,2]
[378089648,1754721053130,-460.0,0.00023013,2]
[378089649,1754721053139,-460.0,0.00023013,2]
[378089650,1754721053149,-763.98,0.00023013,2]
[378089651,1754721053159,-460.0,0.00023013,2]
[378089652,1754721053169,-1179.78,0.00023013,2]
[378089653,1754721053179,-2244.2,0.00023013,2]
[378089654,1754721053188,-460.0,0.00023013,2]
[378089655,1754721053198,-460.0,0.00023013,2]
[378089656,1754721053207,-370.01728332,0.00023013,2]
[378089657,1754721053216,-486.04,0.00023013,2]
[378089658,1754721053226,-460.0,0.00023013,2]
[378089659,1754721053235,-460.0,0.00023013,2]
[378089660,1754721053245,-545.0,0.00023013,2]
[378089661,1754721053255,-460.0,0.00023013,2]
[378089662,1754721053265,-1262.23,0.00023013,2]
[378089663,1754721053275,-460.0,0.00023013,2]
[378089664,1754721053284,-596.41,0.00023013,2]
[378089665,1754721053294,-460.0,0.00023013,2]
[378089666,1754721053303,-460.0,0.00023013,2]
[378089667,1754721053313,-460.0,0.00023013,2]
[378089668,1754721053322,-460.0,0.00023013,2]
[378089669,1754721053331,-690.35,0.00023013,2]
[378089670,1754721053340,-1239.79,0.00023013,2]
[378089671,1754721053350,-868.95,0.00023013,2]
[378089672,1754721053359,-460.0,0.00023013,2]
[378089673,1754721053369,-1091.38,0.00023013,2]
[378089674,1754721053378,-487.73,0.00023013,2]
[378089675,1754721053387,-460.0,0.00023013,2]
[378089676,1754721053397,-460.0,0.00023013,2]
[378089677,1754721053409,-460.0,0.00023013,2]
[378089678,1754721053418,-1730.53,0.00023013,2]
[378089679,1754721053427,-460.0,0.00023013,2]
[378089680,1754721053437,-460.0,0.00023013,2]
[378089681,1754721053446,-460.0,0.00023013,2]
[378089682,1754721053455,-570.5,0.00023013,2]
[378089683,1754721053464,-460.0,0.00023013,2]
[378089684,1754721053473,-1042.72,0.00023013,2]
[378089685,1754721053484,-460.0,0.00023013,2]
[378089686,1754721053494,-3431.05,0.00023013,2]
[378089687,1754721053505,-460.0,0.00023013,2]
[378089688,1754721053514,-460.0,0.00023013,2]
[378089689,1754721053523,-833.86,0.00023013,2]
[378089690,1754721053532,-460.0,0.00023013,2]
[378089691,1754721053542,-460.0,0.00023013,2]
[378089692,1754721053551,-622.29,0.00023013,2]
[378089693,1754721053561,-460.0,0.00023013,2]
[378089694,1754721053570,-460.0,0.00023013,2]
[378089695,1754721053580,-480.94,0.00023013,2]
[378089696,1754721053590,-460.0,0.00023013,2]
[378089697,1754721053599,-284.82813204,0.00023014,2]
[378089698,1754721053609,-1500.0,0.00023068,2]
[378089699,1754721053618,-714.72311449,0.00023068,2]
[378089700,1754721053628,-501.44830093,0.00023068,2]
[378089701,1754721053637,-500.0,0.00023068,2]
[378089702,1754721053647,-1500.0,0.00023068,2]
[378089703,1754721053656,-1500.0,0.00023068,2]
[378089704,1754721053665,-225.23030204,0.00023068,2]
[378089705,1754721053675,-1500.0,0.00023068,2]
[378089706,1754721053684,-524.05187701,0.00023068,2]
[378089707,1754721053693,-1500.0,0.00023068,2]
[378089708,1754721053703,-1500.0,0.00023068,2]
[378089709,1754721053713,-538.63950387,0.00023068,2]
[378089710,1754721053722,-606.07813515,0.00023068,2]
[378089711,1754721053731,-1500.0,0.00023068,2]
[378089712,1754721053741,-1500.0,0.00023068,2]
[378089713,1754721053750,-638.29836182,0.00023068,2]
[378089714,1754721053760,-151.0,0.000231,5]
[378089715,1754721053769,-1198.38,0.00023221,2]
[378089716,1754721053779,-170.98,0.00023221,2]
[378089717,1754721053788,-353.07641004,0.00023247,2]
[378089718,1754721053798,-151.0,0.0002325,2]
[378089719,1754721053807,-151.0,0.0002325,2]
[378089720,1754721053817,-1800.0,0.00023268,2]
[378089721,1754721053826,-500.0,0.00023268,2]
[378089722,1754721053835,-500.0,0.00023268,2]
[378089723,1754721053845,-1500.0,0.00023268,2]
[378089724,1754721053855,-674.52,0.00023276,3]
[378089725,1754721053864,-337.26,0.00023276,3]
[378089726,1754721053873,-304.4943401,0.00023287,2]
[378089727,1754721053883,-460.0,0.00023287,2]
[378089728,1754721053892,-460.0,0.00023287,2]
[378089729,1754721053901,-460.0,0.00023287,2]
[378089730,1754721053911,-460.0,0.00023287,2]
[378089731,1754721053921,-501.47,0.00023287,2]
[378089732,1754721053930,-460.0,0.00023287,2]
[378089733,1754721053939,-460.0,0.00023287,2]
[378089734,1754721053949,-460.0,0.00023287,2]
[378089735,1754721053959,-460.0,0.00023287,2]
[378089736,1754721053970,-460.0,0.00023287,2]
[378089737,1754721053980,-460.0,0.00023287,2]
[378089738,1754721053989,-750.91,0.00023287,2]
[378089739,1754721053999,-460.0,0.00023287,2]
[378089740,1754721054010,-531.05,0.00023287,2]
[378089741,1754721054019,-460.0,0.00023287,2]
[378089742,1754721054029,-460.0,0.00023287,2]
[378089743,1754721054040,-460.0,0.00023287,2]
[378089744,1754721054050,-460.0,0.00023287,2]
[378089745,1754721054060,-460.0,0.00023287,2]
[378089746,1754721054070,-662.38,0.00023287,2]
[378089747,1754721054079,-460.0,0.00023287,2]
[378089748,1754721054089,-460.0,0.00023287,2]
[378089749,1754721054099,-460.0,0.00023287,2]
[378089750,1754721054110,-846.83,0.00023287,2]
[378089751,1754721054119,-460.0,0.00023287,2]
[378089752,1754721054130,-460.0,0.00023287,2]
[378089753,1754721054139,-460.0,0.00023287,2]
[378089754,1754721054149,-460.0,0.00023287,2]
[378089755,1754721054158,-460.0,0.00023287,2]
[378089756,1754721054168,-460.0,0.00023287,2]
[378089757,1754721054177,-460.0,0.00023287,2]
[378089758,1754721054187,-460.0,0.00023287,2]
[378089759,1754721054200,-460.0,0.00023287,2]
[378089760,1754721054210,-460.0,0.00023287,2]
[378089761,1754721054220,-270.55235885,0.00023287,2]
[378089762,1754721054229,-460.0,0.00023287,2]
[378089763,1754721054239,-460.0,0.00023287,2]
[378089764,1754721054249,-460.0,0.00023287,2]
[378089765,1754721054259,-460.0,0.00023287,2]
[378089766,1754721054268,-460.0,0.00023287,2]
[378089767,1754721054278,-460.0,0.00023287,2]
[378089768,1754721054287,-460.0,0.00023287,2]
[378089769,1754721054297,-460.0,0.00023287,2]
[378089770,1754721054306,-487.37,0.00023287,2]
[378089771,1754721054316,-460.0,0.00023287,2]
[378089772,1754721054325,-460.0,0.00023287,2]
[378089773,1754721054335,-167.89603516,0.00023287,2]
[378089774,1754721054347,-460.0,0.00023287,2]
[378089775,1754721054359,-460.0,0.00023287,2]
[378089776,1754721054369,-460.0,0.00023287,2]
[378089777,1754721054379,-460.0,0.00023287,2]
[378089778,1754721054388,-460.0,0.00023287,2]
[378089779,1754721054398,-460.0,0.00023287,2]
[378089780,1754721054408,-460.0,0.00023287,2]
[378089781,1754721054418,-1296.46,0.00023287,2]
[378089782,1754721054428,-1211.37,0.00023287,2]
[378089783,1754721054437,-460.0,0.00023287,2]
[378089784,1754721054447,-1408.08,0.00023287,2]
[378089785,1754721054457,-689.75,0.00023287,2]
[378089786,1754721054466,-460.0,0.00023287,2]
[378089787,1754721054476,-460.0,0.00023287,2]
[378089788,1754721054485,-460.0,0.00023287,2]
[378089789,1754721054496,-1084.78,0.00023287,2]
[378089790,1754721054506,-2640.67,0.00023287,2]
[378089791,1754721054516,-1238.18,0.00023287,2]
[378089792,1754721054526,-568.38,0.00023287,2]
[378089793,1754721054535,-460.0,0.00023287,2]
[378089794,1754721054546,-460.0,0.00023287,2]
[378089795,1754721054555,-774.83,0.00023287,2]
[378089796,1754721054565,-460.0,0.00023287,2]
[378089797,1754721054574,-705.68,0.00023287,2]
[378089798,1754721054588,-593.19,0.00023287,2]
[378089799,1754721054598,-1168.01,0.00023287,2]
[378089800,1754721054607,-460.0,0.00023287,2]
[378089801,1754721054616,-460.0,0.00023287,2]
[378089802,1754721054626,-554.86,0.00023287,2]
[378089803,1754721054636,-460.0,0.00023287,2]
[378089804,1754721054645,-460.0,0.00023287,2]
[378089805,1754721054654,-460.0,0.00023287,2]
[378089806,1754721054664,-460.0,0.00023287,2]
[378089807,1754721054673,-2187.57,0.00023287,2]
[378089808,1754721054683,-891.51,0.00023287,2]
[378089809,1754721054693,-460.0,0.00023287,2]
[378089810,1754721054703,-460.0,0.00023287,2]
[378089811,1754721054714,-1468.96,0.00023287,2]
[378089812,1754721054723,-5203.2,0.00023287,2]
[378089813,1754721054732,-871.09,0.00023287,2]
[378089814,1754721054741,-673.08,0.00023287,2]
[378089815,1754721054756,-516.08,0.00023287,2]
[378089816,1754721054773,-460.0,0.00023287,2]
[378089817,1754721054791,-460.0,0.00023287,2]
[378089818,1754721054805,-2063.88,0.00023287,2]
[378089819,1754721054821,-460.0,0.00023287,2]
[378089820,1754721054830,-460.0,0.00023287,2]
[378089821,1754721054848,-460.0,0.00023287,2]
[378089822,1754721054858,-763.98,0.00023287,2]
[378089823,1754721054867,-460.0,0.00023287,2]